Publisher Label,Publisher URI,"Payment Date","Organisational Unit","Beneficiary Name","Purpose","Amount (£)","Irrecoverable VAT Amount (£)","Merchant Category Code"
"Wolverhampton City Council","http://opendatacommunities.org/id/metropolitan-district-council/wolverhampton","12/10/2017","LGPS Central","The Financial Times Limited","Staff Advertising Costs","1,500.00","0.00","5192"
"Wolverhampton City Council","http://opendatacommunities.org/id/metropolitan-district-council/wolverhampton","12/10/2017","Pension Operations","Warwick University Enterprises Ltd","Agency Staff","536.87","0.00","8220"
"Wolverhampton City Council","http://opendatacommunities.org/id/metropolitan-district-council/wolverhampton","13/10/2017","Investment - Revenue","Portfolio Evaluation Limited","Services - Professional Fees","7,350.00","0.00","8999"
"Wolverhampton City Council","http://opendatacommunities.org/id/metropolitan-district-council/wolverhampton","13/10/2017","Investment - Revenue","SQUIRE PATTON BOGGS (UK) LLP","Services - Professional Fees","1,394.52","0.00","8111"
"Wolverhampton City Council","http://opendatacommunities.org/id/metropolitan-district-council/wolverhampton","13/10/2017","LAPFF","PIRC Ltd","Services - Professional Fees","43,480.80","0.00","8999"
"Wolverhampton City Council","http://opendatacommunities.org/id/metropolitan-district-council/wolverhampton","13/10/2017","LGPS Central","Eversheds LLP","Services - Professional Fees","2,754.00","0.00","8111"
"Wolverhampton City Council","http://opendatacommunities.org/id/metropolitan-district-council/wolverhampton","13/10/2017","LGPS Central","PRICE WATERHOUSE COOPERS","Services - Professional Fees","53,200.00","0.00","8931"
"Wolverhampton City Council","http://opendatacommunities.org/id/metropolitan-district-council/wolverhampton","13/10/2017","LGPS Central","Professionals In Law","Staff Advertising Costs","595.00","0.00","8111"
"Wolverhampton City Council","http://opendatacommunities.org/id/metropolitan-district-council/wolverhampton","13/10/2017","Pension Operations","Barnett Waddingham LLP","Actuarial Fees","1,125.00","0.00","6012"
"Wolverhampton City Council","http://opendatacommunities.org/id/metropolitan-district-council/wolverhampton","13/10/2017","Pension Operations","Barnett Waddingham LLP","Actuarial Fees","2,167.50","0.00","6012"
"Wolverhampton City Council","http://opendatacommunities.org/id/metropolitan-district-council/wolverhampton","13/10/2017","Pension Operations","Barnett Waddingham LLP","Actuarial Fees","25,095.00","0.00","6012"
"Wolverhampton City Council","http://opendatacommunities.org/id/metropolitan-district-council/wolverhampton","13/10/2017","Pension Operations","Warwick University Enterprises Ltd","Agency Staff","536.87","0.00","8220"
"Wolverhampton City Council","http://opendatacommunities.org/id/metropolitan-district-council/wolverhampton","13/10/2017","Pension Operations","Warwick University Enterprises Ltd","Agency Staff","536.87","0.00","8220"
"Wolverhampton City Council","http://opendatacommunities.org/id/metropolitan-district-council/wolverhampton","13/10/2017","Pension Operations","CIVICA UK LIMITED","Computing - Maint Agreements","1,996.00","0.00","5045"
"Wolverhampton City Council","http://opendatacommunities.org/id/metropolitan-district-council/wolverhampton","13/10/2017","Pension Operations","CIVICA UK LIMITED","Computing - Maint Agreements","52,956.36","0.00","5045"
"Wolverhampton City Council","http://opendatacommunities.org/id/metropolitan-district-council/wolverhampton","18/10/2017","Financial Services","HYMANS ROBERTSON LLP","Services - Professional Fees","6,250.00","0.00","6012"
"Wolverhampton City Council","http://opendatacommunities.org/id/metropolitan-district-council/wolverhampton","18/10/2017","Pension Operations","Yoo","Agency Staff","2,293.47","0.00","7361"
"Wolverhampton City Council","http://opendatacommunities.org/id/metropolitan-district-council/wolverhampton","18/10/2017","Pension Operations","Yoo","Agency Staff","3,422.69","0.00","7361"
"Wolverhampton City Council","http://opendatacommunities.org/id/metropolitan-district-council/wolverhampton","20/10/2017","Financial Services","Grant Thornton UK LLP","Services - Professional Fees","12,155.00","0.00","8931"
"Wolverhampton City Council","http://opendatacommunities.org/id/metropolitan-district-council/wolverhampton","20/10/2017","Governance","ROYAL MAIL GROUP PLC","Comms - Postage","652.38","0.00","9402"
"Wolverhampton City Council","http://opendatacommunities.org/id/metropolitan-district-council/wolverhampton","20/10/2017","Governance","eFinancial Careers Ltd","Staff Advertising Costs","550.00","0.00","7311"
"Wolverhampton City Council","http://opendatacommunities.org/id/metropolitan-district-council/wolverhampton","20/10/2017","LGPS Central","R D Summers","Services - Professional Fees","1,500.00","0.00","8999"
"Wolverhampton City Council","http://opendatacommunities.org/id/metropolitan-district-council/wolverhampton","20/10/2017","Pension Operations","NCC Group Security Services","Computing - Maint Agreements","6,720.00","0.00","7379"
"Wolverhampton City Council","http://opendatacommunities.org/id/metropolitan-district-council/wolverhampton","25/10/2017","Governance","Restore Datashred","Services - Professional Fees","581.12","0.00","7399"
"Wolverhampton City Council","http://opendatacommunities.org/id/metropolitan-district-council/wolverhampton","25/10/2017","Pension Operations","Yoo","Agency Staff","4,245.63","0.00","7361"
"Wolverhampton City Council","http://opendatacommunities.org/id/metropolitan-district-council/wolverhampton","25/10/2017","Pension Operations","NEOPOST LIMITED","Comms - Postage","792.00","0.00","5111"
"Wolverhampton City Council","http://opendatacommunities.org/id/metropolitan-district-council/wolverhampton","26/10/2017","Investment - Revenue","Tedmoor Consultancy Ltd","Services - Consultants","3,750.00","0.00","8999"
"Wolverhampton City Council","http://opendatacommunities.org/id/metropolitan-district-council/wolverhampton","26/10/2017","Investment - Revenue","HSBC BANK PLC/HSBC SECURITY SERVICES","Services - Professional Fees","4,406.39","0.00","6012"
"Wolverhampton City Council","http://opendatacommunities.org/id/metropolitan-district-council/wolverhampton","26/10/2017","LGPS Central","IRG Advisors t/a Odgers Berndtson","Services - Professional Fees","8,611.06","0.00","7392"
"Wolverhampton City Council","http://opendatacommunities.org/id/metropolitan-district-council/wolverhampton","26/10/2017","LGPS Central","IRG Advisors t/a Odgers Berndtson","Services - Professional Fees","8,623.20","0.00","7392"
"Wolverhampton City Council","http://opendatacommunities.org/id/metropolitan-district-council/wolverhampton","26/10/2017","Pension Operations","Pension Management Institute","Training Expenses","2,610.00","0.00","8299"
"Wolverhampton City Council","http://opendatacommunities.org/id/metropolitan-district-council/wolverhampton","27/10/2017","Investment - Revenue","SQUIRE PATTON BOGGS (UK) LLP","Services - Professional Fees","8,982.20","0.00","8111"
"Wolverhampton City Council","http://opendatacommunities.org/id/metropolitan-district-council/wolverhampton","27/10/2017","Pension Operations","BIRMINGHAM CITY COUNCIL","Comms - Postage","2,359.97","0.00","9399"
"Wolverhampton City Council","http://opendatacommunities.org/id/metropolitan-district-council/wolverhampton","27/10/2017","Pension Operations","BIRMINGHAM CITY COUNCIL","Comms - Postage","3,048.63","0.00","9399"
"Wolverhampton City Council","http://opendatacommunities.org/id/metropolitan-district-council/wolverhampton","27/10/2017","Pension Operations","PRICE WATERHOUSE COOPERS","Services - Professional Fees","20,000.00","0.00","8931"
"Wolverhampton City Council","http://opendatacommunities.org/id/metropolitan-district-council/wolverhampton","27/10/2017","Pension Operations","Pension Management Institute","Training Expenses","630.00","0.00","8299"
"Wolverhampton City Council","http://opendatacommunities.org/id/metropolitan-district-council/wolverhampton","01/11/2017","Governance","Kaizen Consultants","Stationery","573.00","0.00","2741"
"Wolverhampton City Council","http://opendatacommunities.org/id/metropolitan-district-council/wolverhampton","01/11/2017","Governance","Kaizen Consultants","Stationery","595.35","0.00","2741"
"Wolverhampton City Council","http://opendatacommunities.org/id/metropolitan-district-council/wolverhampton","01/11/2017","Investments Fund Account","Thomson Reuters","Computing - Maint Agreements","636.00","0.00","5045"
"Wolverhampton City Council","http://opendatacommunities.org/id/metropolitan-district-council/wolverhampton","01/11/2017","LGPS Central","Eversheds LLP","Services - Professional Fees","1,004.82","0.00","8111"
"Wolverhampton City Council","http://opendatacommunities.org/id/metropolitan-district-council/wolverhampton","06/11/2017","Pension Operations","Yoo","Agency Staff","2,871.33","0.00","7361"
"Wolverhampton City Council","http://opendatacommunities.org/id/metropolitan-district-council/wolverhampton","08/11/2017","Governance","Allsorts Office Supplies Limited","Equipment - Purchase","2,937.00","0.00","5021"
"Wolverhampton City Council","http://opendatacommunities.org/id/metropolitan-district-council/wolverhampton","08/11/2017","Governance","KONICA MINOLTA BUS.SOLUTIONS(UK)LTD.","Printing","878.54","0.00","2741"
"Wolverhampton City Council","http://opendatacommunities.org/id/metropolitan-district-council/wolverhampton","08/11/2017","Governance","KONICA MINOLTA BUS.SOLUTIONS(UK)LTD.","Printing","1,857.54","0.00","2741"
"Wolverhampton City Council","http://opendatacommunities.org/id/metropolitan-district-council/wolverhampton","08/11/2017","LGPS Central","Eversheds LLP","Services - Professional Fees","2,836.00","0.00","8111"
"Wolverhampton City Council","http://opendatacommunities.org/id/metropolitan-district-council/wolverhampton","08/11/2017","LGPS Central","Eversheds LLP","Services - Professional Fees","2,932.50","0.00","8111"
"Wolverhampton City Council","http://opendatacommunities.org/id/metropolitan-district-council/wolverhampton","08/11/2017","LGPS Central","Eversheds LLP","Services - Professional Fees","4,820.00","0.00","8111"
"Wolverhampton City Council","http://opendatacommunities.org/id/metropolitan-district-council/wolverhampton","08/11/2017","LGPS Central","Eversheds LLP","Services - Professional Fees","7,395.70","0.00","8111"
"Wolverhampton City Council","http://opendatacommunities.org/id/metropolitan-district-council/wolverhampton","08/11/2017","Pension Operations","Barnett Waddingham LLP","Actuarial Fees","1,125.00","0.00","6012"
"Wolverhampton City Council","http://opendatacommunities.org/id/metropolitan-district-council/wolverhampton","08/11/2017","Pension Operations","Barnett Waddingham LLP","Actuarial Fees","45,060.00","0.00","6012"
"Wolverhampton City Council","http://opendatacommunities.org/id/metropolitan-district-council/wolverhampton","10/11/2017","LGPS Central","Eversheds LLP","Services - Professional Fees","2,850.00","0.00","8111"
"Wolverhampton City Council","http://opendatacommunities.org/id/metropolitan-district-council/wolverhampton","10/11/2017","Pension Operations","BIRMINGHAM CITY COUNCIL","Comms - Postage","4,972.81","0.00","9399"
"Wolverhampton City Council","http://opendatacommunities.org/id/metropolitan-district-council/wolverhampton","13/11/2017","LGPS Central","Cameron City Consultants Limited","Services - Professional Fees","5,850.00","0.00","7392"
"Wolverhampton City Council","http://opendatacommunities.org/id/metropolitan-district-council/wolverhampton","13/11/2017","LGPS Central","Cameron City Consultants Limited","Services - Professional Fees","13,050.00","0.00","7392"
"Wolverhampton City Council","http://opendatacommunities.org/id/metropolitan-district-council/wolverhampton","13/11/2017","LGPS Central","PRICE WATERHOUSE COOPERS","Services - Professional Fees","16,495.00","0.00","8931"
"Wolverhampton City Council","http://opendatacommunities.org/id/metropolitan-district-council/wolverhampton","14/11/2017","Governance","ROYAL MAIL GROUP PLC","Comms - Postage","531.96","0.00","9402"
"Wolverhampton City Council","http://opendatacommunities.org/id/metropolitan-district-council/wolverhampton","14/11/2017","LGPS Central","SCC","Computing - Maint Agreements","19,900.43","0.00","5072"
"Wolverhampton City Council","http://opendatacommunities.org/id/metropolitan-district-council/wolverhampton","14/11/2017","Pension Operations","Barnett Waddingham LLP","Actuarial Fees","957.50","0.00","6012"
"Wolverhampton City Council","http://opendatacommunities.org/id/metropolitan-district-council/wolverhampton","15/11/2017","LGPS Central","PRICE WATERHOUSE COOPERS","Services - Professional Fees","14,735.00","0.00","8931"
"Wolverhampton City Council","http://opendatacommunities.org/id/metropolitan-district-council/wolverhampton","16/11/2017","LAPFF","The Bray Partnership Management Consultants","Services - Consultants","2,731.47","0.00","7392"
"Wolverhampton City Council","http://opendatacommunities.org/id/metropolitan-district-council/wolverhampton","17/11/2017","LAPFF","The Bray Partnership Management Consultants","Services - Consultants","1,068.80","0.00","7392"
"Wolverhampton City Council","http://opendatacommunities.org/id/metropolitan-district-council/wolverhampton","20/11/2017","Investment - Revenue","Browne Jacobson","Services - Professional Fees","3,500.00","0.00","8111"
"Wolverhampton City Council","http://opendatacommunities.org/id/metropolitan-district-council/wolverhampton","20/11/2017","LGPS Central","Aon Hewitt Ltd","Public Liability Insurance","1,387.01","0.00","6300"
"Wolverhampton City Council","http://opendatacommunities.org/id/metropolitan-district-council/wolverhampton","21/11/2017","Pension Operations","Yoo","Agency Staff","2,714.27","0.00","7361"
"Wolverhampton City Council","http://opendatacommunities.org/id/metropolitan-district-council/wolverhampton","21/11/2017","Pension Operations","Redactive Publishing Limited","Staff Advertising Costs","500.00","0.00","7311"
"Wolverhampton City Council","http://opendatacommunities.org/id/metropolitan-district-council/wolverhampton","22/11/2017","Investment - Revenue","HYMANS ROBERTSON LLP","Services - Professional Fees","6,250.00","0.00","6012"
"Wolverhampton City Council","http://opendatacommunities.org/id/metropolitan-district-council/wolverhampton","23/11/2017","Governance","Water Coolers Direct","Water Charges","706.95","0.00","7299"
"Wolverhampton City Council","http://opendatacommunities.org/id/metropolitan-district-council/wolverhampton","24/11/2017","Governance","ROYAL MAIL GROUP PLC","Comms - Postage","599.38","0.00","9402"
"Wolverhampton City Council","http://opendatacommunities.org/id/metropolitan-district-council/wolverhampton","24/11/2017","LGPS Central","eFinancial Careers Ltd","Staff Advertising Costs","2,595.00","0.00","7311"
"Wolverhampton City Council","http://opendatacommunities.org/id/metropolitan-district-council/wolverhampton","24/11/2017","Pension Operations","VENUE CATERING PARTNER LIMITED","Conference Expenses","663.55","0.00","5811"
"Wolverhampton City Council","http://opendatacommunities.org/id/metropolitan-district-council/wolverhampton","27/11/2017","Governance","The Financial Times Limited","Subscriptions","500.00","0.00","5192"
"Wolverhampton City Council","http://opendatacommunities.org/id/metropolitan-district-council/wolverhampton","27/11/2017","Investment - Revenue","HSBC BANK PLC/HSBC SECURITY SERVICES","Services - Professional Fees","4,806.39","0.00","6012"
"Wolverhampton City Council","http://opendatacommunities.org/id/metropolitan-district-council/wolverhampton","27/11/2017","LGPS Central","Browne Jacobson","Services - Professional Fees","541.56","0.00","8111"
"Wolverhampton City Council","http://opendatacommunities.org/id/metropolitan-district-council/wolverhampton","29/11/2017","Governance","PIRC Ltd","Conference Expenses","4,000.00","0.00","8999"
"Wolverhampton City Council","http://opendatacommunities.org/id/metropolitan-district-council/wolverhampton","30/11/2017","LGPS Central","Eversheds LLP","Services - Professional Fees","577.50","0.00","8111"
"Wolverhampton City Council","http://opendatacommunities.org/id/metropolitan-district-council/wolverhampton","30/11/2017","LGPS Central","Eversheds LLP","Services - Professional Fees","1,137.50","0.00","8111"
"Wolverhampton City Council","http://opendatacommunities.org/id/metropolitan-district-council/wolverhampton","30/11/2017","LGPS Central","Eversheds LLP","Services - Professional Fees","1,500.00","0.00","8111"
"Wolverhampton City Council","http://opendatacommunities.org/id/metropolitan-district-council/wolverhampton","30/11/2017","LGPS Central","Eversheds LLP","Services - Professional Fees","1,664.00","0.00","8111"
"Wolverhampton City Council","http://opendatacommunities.org/id/metropolitan-district-council/wolverhampton","30/11/2017","LGPS Central","Eversheds LLP","Services - Professional Fees","2,808.00","0.00","8111"
"Wolverhampton City Council","http://opendatacommunities.org/id/metropolitan-district-council/wolverhampton","30/11/2017","LGPS Central","Eversheds LLP","Services - Professional Fees","5,750.00","0.00","8111"
"Wolverhampton City Council","http://opendatacommunities.org/id/metropolitan-district-council/wolverhampton","30/11/2017","Pension Operations","Wilmington Millennium","Computing - Maint Agreements","6,020.00","0.00","5045"
"Wolverhampton City Council","http://opendatacommunities.org/id/metropolitan-district-council/wolverhampton","30/11/2017","Pension Operations","Eversheds LLP","Services - Professional Fees","774.00","0.00","8111"
"Wolverhampton City Council","http://opendatacommunities.org/id/metropolitan-district-council/wolverhampton","30/11/2017","Pension Operations","Eversheds LLP","Services - Professional Fees","1,080.00","0.00","8111"
"Wolverhampton City Council","http://opendatacommunities.org/id/metropolitan-district-council/wolverhampton","30/11/2017","Pension Operations","Eversheds LLP","Services - Professional Fees","1,242.00","0.00","8111"
"Wolverhampton City Council","http://opendatacommunities.org/id/metropolitan-district-council/wolverhampton","30/11/2017","Pension Operations","Eversheds LLP","Services - Professional Fees","1,350.00","0.00","8111"
"Wolverhampton City Council","http://opendatacommunities.org/id/metropolitan-district-council/wolverhampton","30/11/2017","Pension Operations","Eversheds LLP","Services - Professional Fees","1,530.00","0.00","8111"
"Wolverhampton City Council","http://opendatacommunities.org/id/metropolitan-district-council/wolverhampton","30/11/2017","Pension Operations","Eversheds LLP","Services - Professional Fees","1,809.00","0.00","8111"
"Wolverhampton City Council","http://opendatacommunities.org/id/metropolitan-district-council/wolverhampton","30/11/2017","Pension Operations","Eversheds LLP","Services - Professional Fees","2,160.00","0.00","8111"
"Wolverhampton City Council","http://opendatacommunities.org/id/metropolitan-district-council/wolverhampton","30/11/2017","Pension Operations","Eversheds LLP","Services - Professional Fees","2,500.00","0.00","8111"
"Wolverhampton City Council","http://opendatacommunities.org/id/metropolitan-district-council/wolverhampton","30/11/2017","Pension Operations","Eversheds LLP","Services - Professional Fees","6,282.50","0.00","8111"
"Wolverhampton City Council","http://opendatacommunities.org/id/metropolitan-district-council/wolverhampton","01/12/2017","Governance","The Financial Times Limited","Subscriptions","800.00","0.00","5192"
"Wolverhampton City Council","http://opendatacommunities.org/id/metropolitan-district-council/wolverhampton","04/12/2017","Pension Operations","Eversheds LLP","Services - Professional Fees","1,044.00","0.00","8111"
"Wolverhampton City Council","http://opendatacommunities.org/id/metropolitan-district-council/wolverhampton","04/12/2017","Pension Operations","Eversheds LLP","Services - Professional Fees","1,500.00","0.00","8111"
"Wolverhampton City Council","http://opendatacommunities.org/id/metropolitan-district-council/wolverhampton","05/12/2017","LAPFF","The Bray Partnership Management Consultants","Services - Consultants","3,384.39","0.00","7392"
"Wolverhampton City Council","http://opendatacommunities.org/id/metropolitan-district-council/wolverhampton","05/12/2017","LAPFF","The Bray Partnership Management Consultants","Subsistence","1,264.81","0.00","7392"
"Wolverhampton City Council","http://opendatacommunities.org/id/metropolitan-district-council/wolverhampton","06/12/2017","Governance","Allsorts Office Supplies Limited","Equipment - Purchase","20,731.00","0.00","5021"
"Wolverhampton City Council","http://opendatacommunities.org/id/metropolitan-district-council/wolverhampton","06/12/2017","Governance","Insight Direct (UK) Ltd","Equipment - Purchase","4,730.99","0.00","5045"
"Wolverhampton City Council","http://opendatacommunities.org/id/metropolitan-district-council/wolverhampton","06/12/2017","Governance","North West Leicestershire District Council","Training Expenses","700.00","0.00","8299"
"Wolverhampton City Council","http://opendatacommunities.org/id/metropolitan-district-council/wolverhampton","08/12/2017","Pension Operations","SHL Group Ltd","Staff Advertising Costs","590.00","0.00","7361"
"Wolverhampton City Council","http://opendatacommunities.org/id/metropolitan-district-council/wolverhampton","12/12/2017","Governance","Thompson Group Services","R&M - Departmental planned (external)","894.40","0.00","1520"
"Wolverhampton City Council","http://opendatacommunities.org/id/metropolitan-district-council/wolverhampton","12/12/2017","Governance","Thompson Group Services","R&M - Departmental response (Internal)","8,889.00","0.00","1520"
"Wolverhampton City Council","http://opendatacommunities.org/id/metropolitan-district-council/wolverhampton","12/12/2017","Investment - Revenue","SQUIRE PATTON BOGGS (UK) LLP","Services - Professional Fees","4,920.25","0.00","8111"
"Wolverhampton City Council","http://opendatacommunities.org/id/metropolitan-district-council/wolverhampton","12/12/2017","Pension Operations","BIRMINGHAM CITY COUNCIL","Comms - Postage","6,690.97","0.00","9399"
"Wolverhampton City Council","http://opendatacommunities.org/id/metropolitan-district-council/wolverhampton","13/12/2017","Governance","GBS Corporate Training","Training Expenses","1,100.00","0.00","8299"
"Wolverhampton City Council","http://opendatacommunities.org/id/metropolitan-district-council/wolverhampton","13/12/2017","Pension Operations","Barnett Waddingham LLP","Actuarial Fees","1,125.00","0.00","6012"
"Wolverhampton City Council","http://opendatacommunities.org/id/metropolitan-district-council/wolverhampton","13/12/2017","Pension Operations","Barnett Waddingham LLP","Actuarial Fees","2,778.75","0.00","6012"
"Wolverhampton City Council","http://opendatacommunities.org/id/metropolitan-district-council/wolverhampton","13/12/2017","Pension Operations","Barnett Waddingham LLP","Actuarial Fees","52,480.00","0.00","6012"
"Wolverhampton City Council","http://opendatacommunities.org/id/metropolitan-district-council/wolverhampton","18/12/2017","Governance","DTZ DTL LTD","Rent","54,846.20","0.00","7523"
"Wolverhampton City Council","http://opendatacommunities.org/id/metropolitan-district-council/wolverhampton","19/12/2017","Governance","ROYAL MAIL GROUP PLC","Comms - Postage","525.46","0.00","9402"
"Wolverhampton City Council","http://opendatacommunities.org/id/metropolitan-district-council/wolverhampton","19/12/2017","LAPFF","PIRC Ltd","Services - Professional Fees","41,766.70","0.00","8999"
"Wolverhampton City Council","http://opendatacommunities.org/id/metropolitan-district-council/wolverhampton","19/12/2017","LAPFF","PIRC Ltd","Services - Professional Fees","42,358.40","0.00","8999"
"Wolverhampton City Council","http://opendatacommunities.org/id/metropolitan-district-council/wolverhampton","20/12/2017","Governance","ROYAL MAIL GROUP PLC","Comms - Postage","706.47","0.00","9402"
"Wolverhampton City Council","http://opendatacommunities.org/id/metropolitan-district-council/wolverhampton","20/12/2017","Governance","South West Councils","Conference Expenses","1,034.00","0.00","9399"
"Wolverhampton City Council","http://opendatacommunities.org/id/metropolitan-district-council/wolverhampton","20/12/2017","Governance","KONICA MINOLTA BUS.SOLUTIONS(UK)LTD.","Printing","964.09","0.00","2741"
"Wolverhampton City Council","http://opendatacommunities.org/id/metropolitan-district-council/wolverhampton","20/12/2017","Governance","Send DM Ltd","Printing","710.00","0.00","5111"
"Wolverhampton City Council","http://opendatacommunities.org/id/metropolitan-district-council/wolverhampton","20/12/2017","Investment - Revenue","HSBC BANK PLC/HSBC SECURITY SERVICES","Services - Professional Fees","4,806.38","0.00","6012"
"Wolverhampton City Council","http://opendatacommunities.org/id/metropolitan-district-council/wolverhampton","20/12/2017","Investment - Revenue","HYMANS ROBERTSON LLP","Services - Professional Fees","6,250.00","0.00","6012"
"Wolverhampton City Council","http://opendatacommunities.org/id/metropolitan-district-council/wolverhampton","20/12/2017","Investments Fund Account","LONDON STOCK EXCHANGE PLC","Services - General Licences","604.93","0.00","6012"
"Wolverhampton City Council","http://opendatacommunities.org/id/metropolitan-district-council/wolverhampton","20/12/2017","LGPS Central","COTTAGE BLINDS CONTRACTS LIMITED","R&M - Departmental response (Internal)","3,875.00","0.00","5714"
"Wolverhampton City Council","http://opendatacommunities.org/id/metropolitan-district-council/wolverhampton","20/12/2017","LGPS Central","Eversheds LLP","Services - Professional Fees","500.00","0.00","8111"
"Wolverhampton City Council","http://opendatacommunities.org/id/metropolitan-district-council/wolverhampton","20/12/2017","LGPS Central","Eversheds LLP","Services - Professional Fees","1,130.00","0.00","8111"
"Wolverhampton City Council","http://opendatacommunities.org/id/metropolitan-district-council/wolverhampton","20/12/2017","LGPS Central","Eversheds LLP","Services - Professional Fees","7,549.00","0.00","8111"
"Wolverhampton City Council","http://opendatacommunities.org/id/metropolitan-district-council/wolverhampton","20/12/2017","LGPS Central","eFinancial Careers Ltd","Staff Advertising Costs","4,200.00","0.00","7311"
"Wolverhampton City Council","http://opendatacommunities.org/id/metropolitan-district-council/wolverhampton","20/12/2017","Pension Operations","Accurate Data Services Limited","Services - Professional Fees","3,609.05","0.00","5045"
"Wolverhampton City Council","http://opendatacommunities.org/id/metropolitan-district-council/wolverhampton","20/12/2017","Pension Operations","Eversheds LLP","Services - Professional Fees","2,133.00","0.00","8111"
"Wolverhampton City Council","http://opendatacommunities.org/id/metropolitan-district-council/wolverhampton","20/12/2017","Pension Operations","Eversheds LLP","Services - Professional Fees","3,366.00","0.00","8111"
"Wolverhampton City Council","http://opendatacommunities.org/id/metropolitan-district-council/wolverhampton","21/12/2017","LGPS Central","eFinancial Careers Ltd","Staff Advertising Costs","2,250.00","0.00","7311"
"Wolverhampton City Council","http://opendatacommunities.org/id/metropolitan-district-council/wolverhampton","21/12/2017","Pension Operations","Pension Management Institute","Training Expenses","965.00","0.00","8299"
"Wolverhampton City Council","http://opendatacommunities.org/id/metropolitan-district-council/wolverhampton","29/12/2017","Governance","LexisNexis","Computing - Consumables","3,800.00","0.00","5045"
"Wolverhampton City Council","http://opendatacommunities.org/id/metropolitan-district-council/wolverhampton","29/12/2017","LGPS Central","Cameron City Consultants Limited","Accommodation Costs","626.67","0.00","7392"
"Wolverhampton City Council","http://opendatacommunities.org/id/metropolitan-district-council/wolverhampton","29/12/2017","LGPS Central","Cameron City Consultants Limited","Services - Professional Fees","15,300.00","0.00","7392"
"Wolverhampton City Council","http://opendatacommunities.org/id/metropolitan-district-council/wolverhampton","03/01/2018","LGPS Central","Allsorts Office Supplies Limited","Equipment - Purchase","3,720.00","0.00","5021"
"Wolverhampton City Council","http://opendatacommunities.org/id/metropolitan-district-council/wolverhampton","04/01/2018","Governance","LexisNexis","Computing - Consumables","4,600.00","0.00","5045"
"Wolverhampton City Council","http://opendatacommunities.org/id/metropolitan-district-council/wolverhampton","04/01/2018","LGPS Central","SQUIRE PATTON BOGGS (UK) LLP","Services - Professional Fees","2,035.50","0.00","8111"
"Wolverhampton City Council","http://opendatacommunities.org/id/metropolitan-district-council/wolverhampton","05/01/2018","Pension Operations","Yoo","Agency Staff","751.51","0.00","7361"
"Wolverhampton City Council","http://opendatacommunities.org/id/metropolitan-district-council/wolverhampton","05/01/2018","Pension Operations","Yoo","Agency Staff","859.75","0.00","7361"
"Wolverhampton City Council","http://opendatacommunities.org/id/metropolitan-district-council/wolverhampton","05/01/2018","Pension Operations","Yoo","Agency Staff","950.06","0.00","7361"
"Wolverhampton City Council","http://opendatacommunities.org/id/metropolitan-district-council/wolverhampton","05/01/2018","Pension Operations","Yoo","Agency Staff","960.89","0.00","7361"
"Wolverhampton City Council","http://opendatacommunities.org/id/metropolitan-district-council/wolverhampton","10/01/2018","Governance","Robert Walters Operations Limited","Services - Professional Fees","8,739.18","0.00","7361"
"Wolverhampton City Council","http://opendatacommunities.org/id/metropolitan-district-council/wolverhampton","10/01/2018","LGPS Central","HAYS SPECIALIST RECRUITMENT LTD","Agency Staff","557.96","0.00","7361"
"Wolverhampton City Council","http://opendatacommunities.org/id/metropolitan-district-council/wolverhampton","12/01/2018","Investments Fund Account","IIGCC","Subscriptions","6,490.00","0.00","8999"
"Wolverhampton City Council","http://opendatacommunities.org/id/metropolitan-district-council/wolverhampton","12/01/2018","Pension Operations","Barnett Waddingham LLP","Actuarial Fees","760.00","0.00","6012"
"Wolverhampton City Council","http://opendatacommunities.org/id/metropolitan-district-council/wolverhampton","12/01/2018","Pension Operations","Barnett Waddingham LLP","Actuarial Fees","21,055.00","0.00","6012"
"Wolverhampton City Council","http://opendatacommunities.org/id/metropolitan-district-council/wolverhampton","15/01/2018","Financial Services","CIPFA BUSINESS LIMITED","Training Expenses","1,260.00","0.00","8999"
"Wolverhampton City Council","http://opendatacommunities.org/id/metropolitan-district-council/wolverhampton","16/01/2018","Pension Operations","Barnett Waddingham LLP","Actuarial Fees","11,543.75","0.00","6012"
"Wolverhampton City Council","http://opendatacommunities.org/id/metropolitan-district-council/wolverhampton","22/01/2018","Governance","Korn Ferry Hay Group","Services - Professional Fees","1,100.00","0.00","7392"
"Wolverhampton City Council","http://opendatacommunities.org/id/metropolitan-district-council/wolverhampton","22/01/2018","Pension Operations","Eversheds LLP","Services - Professional Fees","594.00","0.00","8111"
"Wolverhampton City Council","http://opendatacommunities.org/id/metropolitan-district-council/wolverhampton","22/01/2018","Pension Operations","Eversheds LLP","Services - Professional Fees","600.18","0.00","8111"
"Wolverhampton City Council","http://opendatacommunities.org/id/metropolitan-district-council/wolverhampton","22/01/2018","Pension Operations","Eversheds LLP","Services - Professional Fees","648.00","0.00","8111"
"Wolverhampton City Council","http://opendatacommunities.org/id/metropolitan-district-council/wolverhampton","22/01/2018","Pension Operations","Eversheds LLP","Services - Professional Fees","1,134.00","0.00","8111"
"Wolverhampton City Council","http://opendatacommunities.org/id/metropolitan-district-council/wolverhampton","22/01/2018","Pension Operations","Eversheds LLP","Services - Professional Fees","1,269.00","0.00","8111"
"Wolverhampton City Council","http://opendatacommunities.org/id/metropolitan-district-council/wolverhampton","22/01/2018","Pension Operations","Eversheds LLP","Services - Professional Fees","1,539.00","0.00","8111"
"Wolverhampton City Council","http://opendatacommunities.org/id/metropolitan-district-council/wolverhampton","22/01/2018","Pension Operations","Eversheds LLP","Services - Professional Fees","1,944.00","0.00","8111"
"Wolverhampton City Council","http://opendatacommunities.org/id/metropolitan-district-council/wolverhampton","22/01/2018","Pension Operations","Eversheds LLP","Services - Professional Fees","2,576.50","0.00","8111"
